bitfinex/quotes_SOLUSD_20250305
["timestamp","ask_amount","ask_price","bid_price","bid_amount"]
[1741172232985,0.28432314,148.95,148.94,0.0001]
[1741172233784,45.647572,148.95,148.94,0.0001]
[1741172234083,47.41051558,148.95,148.94,0.0001]
[1741172234272,45.647572,148.95,148.94,0.0001]
[1741172235480,0.03,148.98,148.94,14.0311]
[1741172235780,0.03,148.98,148.94,159.1447]
[1741172235980,0.03,148.98,148.94,189.51913741]
[1741172236287,0.03,148.98,148.94,257.78813741]
[1741172237392,0.03,148.98,148.95,30.37443741]
[1741172237687,0.03,148.98,148.94,220.7001]
[1741172238278,0.03,148.98,148.94,251.07453741]
[1741172238482,0.03,148.98,148.95,30.37443741]
[1741172238779,0.03,148.98,148.96,312.0]
[1741172240174,0.03,148.98,148.94,220.7001]
[1741172240584,0.03,148.98,148.94,227.4141]
[1741172240786,0.03,148.98,148.94,257.78853741]
[1741172242178,0.03,148.98,148.96,30.37443741]
[1741172243290,0.03,148.98,148.97,312.0]
[1741172243589,0.03,148.98,148.97,532.7]
[1741172244297,0.03,148.98,148.97,539.4127]
[1741172245296,0.03,148.98,148.97,532.7]
[1741172245686,0.03,148.98,148.97,539.4127]
[1741172245995,0.03,148.98,148.97,257.78713741]
[1741172247001,0.03,148.98,148.97,220.7]
[1741172247195,0.03,148.98,148.97,227.4127]
[1741172247393,0.03,149.03,148.98,31.95903741]
[1741172247601,0.03,149.03,148.98,252.65903741]
[1741172248093,0.03,149.03,149.02,20.0]
[1741172248287,0.03,149.03,149.02,271.07443741]
[1741172248901,0.03,149.03,149.02,583.07443741]
[1741172249618,0.03,149.03,149.02,552.7]
[1741172250493,0.03,149.03,149.02,240.7]
[1741172251387,0.03,149.03,149.02,277.78493741]
[1741172252299,0.03,149.03,149.02,240.7]
[1741172253489,0.03,149.03,149.02,552.7]
[1741172254398,0.03,149.03,149.02,589.78493741]
[1741172255617,0.03,149.03,149.02,308.86286324]
[1741172256111,0.03,149.13,149.04,1.5389]
[1741172256318,6.7356,149.13,149.05,0.46015131]
[1741172256615,6.7356,149.13,149.05,30.37443741]
[1741172256797,6.7356,149.13,149.04,222.2389]
[1741172257104,6.7356,149.13,149.05,30.37443741]
[1741172257321,6.7356,149.13,149.06,37.08313741]
[1741172257617,0.03,149.13,149.07,30.37443741]
[1741172257798,0.03,149.13,149.08,50.37443741]
[1741172258111,0.03,149.13,149.08,20.0]
[1741172258590,0.03,149.13,149.08,362.37443741]
[1741172259207,0.03,149.13,149.09,37.08173741]
[1741172259512,0.03,149.13,149.1,30.37443741]
[1741172259692,0.03,149.13,149.1,251.07443741]
[1741172260223,0.03,149.13,149.12,20.0]
[1741172260925,0.03,149.13,149.12,51.87843741]
[1741172261288,0.03,149.13,149.12,58.58443741]
[1741172261487,0.03,149.13,149.12,28.21]
[1741172261695,0.03,149.13,149.12,220.7]
[1741172262317,0.03,149.13,149.12,532.7]
[1741172262820,0.03,149.13,149.12,251.07443741]
[1741172263005,0.03,149.13,149.12,220.7]
[1741172263797,0.03,149.13,149.12,257.78043741]
[1741172264217,0.03,149.13,149.12,220.7]
[1741172265907,0.03,149.13,149.12,563.07443741]
[1741172266212,0.03,149.13,149.12,569.78043741]
[1741172266419,0.03,149.13,149.12,532.7]
[1741172266606,0.03,149.13,149.12,539.406]
[1741172267120,0.03,149.18,149.16,20.47432314]
[1741172267314,0.03,149.2,149.19,57.07723741]
[1741172267500,0.03,149.2,149.19,277.77723741]
[1741172267698,0.03,149.21,149.19,277.77723741]
[1741172267899,0.0001,149.21,149.2,58.38966159]
[1741172268110,0.0001,149.21,149.2,64.70466159]
[1741172268601,0.03,149.28,149.27,20.0]
[1741172268796,0.03,149.28,149.27,102.3]
[1741172269202,0.03,149.28,149.27,82.3]
[1741172269407,0.03,149.28,149.24,220.7]
[1741172270131,0.03,149.28,149.24,532.7]
[1741172271594,0.03,149.28,149.22,82.3]
[1741172271800,1.78842675,149.28,149.22,82.3]
[1741172273152,25.053672,149.27,149.22,82.3]
[1741172273351,0.28432314,149.25,149.22,82.3]
[1741172273647,6.7006,149.24,149.2,220.7]
[1741172274024,0.03,149.28,149.24,20.0]
[1741172274356,0.03,149.28,149.24,220.7]
[1741172274645,0.03,149.28,149.27,312.0]
[1741172274821,0.03,149.28,149.27,532.7]
[1741172275547,0.03,149.28,149.27,588.42328627]
[1741172275750,0.03,149.31,149.3,38.64964886]
[1741172275938,0.03,149.31,149.3,289.72408627]
[1741172276114,0.03,149.31,149.3,296.07858627]
[1741172276329,0.03,149.31,149.3,326.73734682]
[1741172276541,0.03,149.31,149.3,296.36290941]
[1741172276743,0.03,149.31,149.3,296.07858627]
[1741172276947,0.03,149.31,149.3,277.42893741]
[1741172277421,0.03,149.31,149.3,271.07443741]
[1741172278620,0.03,149.31,149.3,583.07443741]
[1741172279945,0.03,149.31,149.3,220.7]
[1741172280517,0.03,149.31,149.3,82.3]
[1741172284443,0.31432314,149.31,149.27,220.7]
[1741172284753,0.31432314,149.31,149.27,82.3]
[1741172284925,0.28432314,149.29,149.23,82.3]
[1741172285116,1.75864817,149.28,149.23,82.3]
[1741172285744,23.73162314,149.27,149.23,82.3]
[1741172286148,6.98352314,149.27,149.23,82.3]
[1741172286345,6.6992,149.27,149.23,82.3]
[1741172287346,2.04319155,149.26,149.2,82.3]
[1741172287860,23.4505,149.25,149.2,82.3]
[1741172288148,2.04357025,149.24,149.17,82.3]
[1741172289438,18.933972,149.2,149.13,85.97]
[1741172289633,18.933972,149.2,149.13,82.3]
[1741172289634,0.28432314,149.18,149.13,82.3]
[1741172290070,6.7037,149.17,149.13,82.3]
[1741172291352,6.98672314,149.2,149.13,112.67443741]
[1741172291550,8.74640603,149.2,149.13,82.3]
[1741172293364,8.46208289,149.2,149.13,89.0051]
[1741172293534,1.514,149.21,149.13,112.67443741]
[1741172293535,8.216,149.21,149.13,112.67443741]
[1741172293735,2.04384354,149.2,149.13,394.3]
[1741172293969,6.7028,149.19,149.13,82.3]
[1741172294341,6.7025,149.2,149.13,119.37993741]
[1741172294943,6.7025,149.2,149.13,82.3]
[1741172294944,0.28432314,149.19,149.13,82.3]
[1741172295976,6.98752314,149.19,149.13,89.0054]
[1741172296784,6.98752314,149.19,149.13,401.0054]
[1741172297077,8.46219658,149.2,149.13,431.37983741]
[1741172297284,6.701,149.23,149.14,30.37443741]
[1741172297468,0.28432314,149.22,149.14,251.07443741]
[1741172298285,6.7019,149.21,149.14,227.4049]
[1741172298593,0.28432314,149.2,149.14,220.7]
[1741172298779,2.04408174,149.2,149.14,82.3]
[1741172299363,6.3899,149.19,149.14,82.3]
[1741172299558,2.04440929,149.18,149.12,82.333]
[1741172300460,0.28432314,149.16,149.12,82.333]
[1741172301154,2.04455832,149.16,149.12,0.033]
[1741172302391,6.7046,149.15,149.12,0.033]
[1741172302887,0.28432314,149.14,149.12,0.033]
[1741172303294,2.04476276,149.14,149.12,0.033]
[1741172304495,6.98982314,149.13,149.12,0.033]
[1741172305673,23.75362314,149.13,149.06,82.3]
[1741172305965,0.28432314,149.11,149.06,82.3]
[1741172306176,0.28432314,149.12,149.06,82.3]
[1741172306697,6.7064,149.12,149.06,119.38303741]
[1741172307067,6.7064,149.12,149.06,89.0086]
[1741172307903,1.76063529,149.14,149.06,257.78303741]
[1741172308061,84.66010352,149.2,149.1,50.37443741]
[1741172308364,6.7033,149.18,149.12,30.37443741]
[1741172308565,6.7033,149.18,149.13,6.7055]
[1741172308761,6.7033,149.18,149.13,539.4055]
[1741172308988,13.0929,149.19,149.13,539.4055]
[1741172309393,6.7025,149.2,149.13,569.77993741]
[1741172309562,6.7025,149.2,149.13,532.7]
[1741172310617,6.7025,149.2,149.13,539.4054]
[1741172311112,6.7025,149.2,149.13,569.77983741]
[1741172311324,0.28432314,149.22,149.14,30.37443741]
[1741172311610,6.0246,149.23,149.16,30.37443741]
[1741172311818,6.0246,149.23,149.15,30.37443741]
[1741172312024,12.7257,149.23,149.17,20.0]
[1741172312198,6.7011,149.23,149.17,102.3]
[1741172312393,6.84286157,149.24,149.17,102.3]
[1741172312914,6.7007,149.24,149.17,102.3]
[1741172313112,6.7007,149.24,149.17,82.3]
[1741172313919,6.6998,149.26,149.19,30.37443741]
[1741172314102,6.6998,149.26,149.19,251.07443741]
[1741172314304,6.6998,149.26,149.19,532.7]
[1741172314528,2.04320174,149.25,149.19,532.7]
[1741172315423,2.04320174,149.25,149.19,220.7]
[1741172315600,20.0,149.17,149.07,220.7]
[1741172315784,20.0,149.17,149.07,257.78243741]
[1741172316110,6.7042,149.16,149.07,257.78243741]
[1741172316315,6.7042,149.16,149.12,0.033]
[1741172317922,16.7596,149.17,149.12,0.033]
[1741172318105,18.51978712,149.17,149.12,0.033]
[1741172318427,18.933972,149.16,149.12,0.033]
[1741172318725,0.28432314,149.14,149.12,0.033]
[1741172319019,18.933972,149.14,149.12,0.033]
[1741172319219,2.04495526,149.13,149.12,0.033]
[1741172319421,0.28432314,149.12,149.08,82.3]
[1741172319614,6.78322314,149.12,149.06,138.4]
[1741172319791,1.7607767,149.11,149.06,138.4]
[1741172319987,6.7069,149.1,149.06,138.4]
[1741172320189,6.7065,149.11,149.06,138.4]
[1741172320825,6.98982314,149.13,149.06,138.4]
[1741172321123,6.98982314,149.13,149.06,220.7]
[1741172322027,1.76069844,149.14,149.06,257.78303741]
[1741172322323,20.0,149.13,149.06,220.7]
[1741172323695,0.28432314,149.14,149.06,220.7]
[1741172324214,26.7055,149.13,149.06,220.7]
[1741172325330,28.46600162,149.13,149.06,220.7]
[1741172326728,26.7055,149.13,149.06,227.4086]
[1741172327124,21.76050531,149.13,149.06,220.7]
[1741172327434,28.46610531,149.13,149.06,220.7]
[1741172327826,45.22990531,149.13,149.06,220.7]
[1741172328613,20.0,149.13,149.06,227.4086]
[1741172328829,8.46539998,149.15,149.06,257.78303741]
[1741172329032,0.28432314,149.14,149.06,220.7]
[1741172329811,18.933972,149.14,149.06,220.7]
[1741172330037,1.76064507,149.13,149.06,220.7]
[1741172330705,6.706,149.12,149.06,220.7]
[1741172331135,2.04491891,149.14,149.06,227.4085]
[1741172331136,6.7056,149.13,149.06,227.4085]
[1741172331706,6.7056,149.13,149.06,539.4085]
[1741172332135,18.52201745,149.15,149.06,539.4085]
[1741172332347,6.7051,149.14,149.06,539.4085]
[1741172333841,23.4678,149.14,149.06,539.4085]
[1741172334947,23.4678,149.14,149.06,532.7]
[1741172334948,1.76038414,149.13,149.06,532.7]
[1741172335127,1.76038414,149.13,149.06,220.7]
[1741172335941,0.28432314,149.12,149.06,220.7]
[1741172336242,0.28432314,149.12,149.06,82.3]
[1741172336731,25.23322183,149.11,149.03,138.4]
[1741172336939,0.28432314,149.09,149.02,139.9825]
[1741172337128,2.04539537,149.09,149.02,139.9825]
[1741172338839,6.7078,149.08,149.02,139.9825]
[1741172339043,1.76113609,149.07,149.01,138.4]
[1741172339745,23.4773,149.08,149.01,138.4]
[1741172341649,1.76122277,149.07,149.01,138.4]
[1741172342023,1.76122277,149.07,149.01,220.7]
[1741172342648,23.4773,149.08,149.01,227.4108]
[1741172343146,6.7078,149.08,149.01,227.4108]
[1741172344341,6.7075,149.09,149.01,246.37599657]
[1741172344544,6.7075,149.09,149.02,18.96519657]
[1741172344750,84.66106326,149.12,149.02,18.96519657]
[1741172344960,6.7064,149.11,149.02,239.66519657]
[1741172345656,6.7064,149.11,149.03,6.71]
[1741172345830,6.7061,149.12,149.04,18.96519657]
[1741172346761,6.7061,149.12,149.04,30.32187847]
[1741172347257,2.04478629,149.11,149.02,227.4103]
[1741172347684,6.7069,149.1,149.02,227.4103]
[1741172347869,6.7069,149.1,149.02,220.7]
[1741172350457,23.4741,149.1,149.02,220.7]
[1741172351656,6.7069,149.1,149.02,227.4103]
[1741172351860,6.7069,149.1,149.02,257.73217847]
[1741172352063,6.706,149.12,149.04,30.32187847]
[1741172352485,1.76040385,149.12,149.02,220.7]
[1741172352671,18.933972,149.11,149.02,227.4104]
[1741172352866,1.76094036,149.1,149.02,227.4104]
[1741172353065,1.76094036,149.1,149.02,257.73227847]
[1741172353465,0.28432314,149.11,149.02,257.73227847]
[1741172353689,6.7069,149.1,149.02,257.73227847]
[1741172354986,6.7069,149.1,149.02,569.73227847]
[1741172355182,6.7069,149.1,149.03,30.32187847]
[1741172355762,8.49715674,149.12,149.04,23.4836]
[1741172355963,6.736,149.12,149.05,30.32187847]
[1741172356269,0.03,149.12,149.05,251.02187847]
[1741172356465,6.736,149.12,149.05,251.02187847]
[1741172356788,6.736,149.12,149.05,220.7]
[1741172357290,0.28432314,149.11,149.05,220.7]
[1741172357487,20.69455447,149.11,149.05,220.7]
[1741172357694,20.69455447,149.11,149.0,220.733]
[1741172357873,6.7082,149.07,149.0,220.733]
[1741172358078,26.7079,149.08,149.0,257.76607847]
[1741172358677,6.7066,149.11,149.03,30.32187847]
[1741172358992,6.7066,149.11,149.03,532.7]
[1741172359872,6.7066,149.11,149.04,6.7096]
[1741172360171,23.4727,149.11,149.03,539.4099]
[1741172360493,2.04512509,149.1,149.03,82.3]
[1741172361874,6.7073,149.09,149.03,89.0097]
[1741172362195,1.76087317,149.11,149.03,119.33157847]
[1741172362397,6.7068,149.11,149.03,89.0097]
[1741172362580,1.76079361,149.1,149.03,220.7]
[1741172362896,0.28432314,149.09,149.03,82.3]
[1741172363676,0.28432314,149.09,149.03,89.0098]
[1741172363996,6.84856157,149.11,149.03,89.0098]
[1741172364897,0.14216157,149.09,149.03,82.3]
[1741172365896,6.7078,149.08,149.03,82.3]
[1741172366678,6.7078,149.08,149.03,89.0099]
[1741172367501,6.7078,149.08,149.03,82.3]
[1741172367880,6.7073,149.09,149.03,82.3]
[1741172368408,6.7073,149.09,149.03,89.0099]
[1741172368580,23.4756,149.09,149.03,82.3]
[1741172368897,7.84680678,149.08,149.03,82.3]
[1741172369975,6.7082,149.07,149.03,82.3]
[1741172370802,23.4788,149.07,149.03,82.3]
[1741172373201,6.7082,149.07,149.03,82.3]
[1741172377113,18.67137778,149.1,149.03,82.3]
[1741172377302,6.7073,149.09,149.03,82.3]
[1741172377802,6.7073,149.09,149.03,220.7]
[1741172378199,2.04525447,149.08,149.03,220.733]
[1741172378405,6.7082,149.07,149.03,220.733]
[1741172380823,23.4788,149.07,149.03,220.733]
[1741172381136,2.0456454,149.06,149.03,82.333]
[1741172381298,8.1338454,149.06,149.03,0.033]
[1741172382812,0.28432314,149.04,149.03,0.033]
[1741172383119,27.4052198,149.04,149.03,0.033]
[1741172384525,18.64964886,149.03,149.02,0.033]
[1741172384821,38.64964886,149.01,149.0,0.033]
[1741172385028,0.28432314,148.99,148.98,0.033]
[1741172385227,2.04654084,148.99,148.98,0.033]
[1741172385619,0.28432314,148.99,148.98,0.033]
[1741172386229,0.28432314,148.99,148.97,0.033]
[1741172386230,1.79552314,148.99,148.97,0.033]
[1741172386420,0.28432314,148.96,148.94,0.0001]
[1741172387212,18.933972,148.95,148.94,0.0001]
[1741172388448,25.647572,148.95,148.94,0.0001]
[1741172394133,6.99792314,148.95,148.94,0.0001]
[1741172394322,6.7123,148.98,148.94,0.0001]
[1741172394512,0.28432314,148.97,148.94,0.0001]
[1741172394912,6.7123,148.98,148.94,0.0001]
[1741172395222,0.28432314,148.97,148.94,0.0001]
[1741172395422,0.14216157,148.97,148.94,0.0001]
[1741172395817,0.28432314,148.97,148.94,0.0001]
[1741172396023,6.99742314,148.97,148.94,0.0001]
[1741172396630,23.77932314,148.97,148.94,0.0001]
[1741172396828,0.28432314,148.95,148.94,0.0001]
[1741172397918,101.54964886,148.98,148.94,0.0001]
[1741172398228,0.03,149.01,148.94,0.0001]
[1741172398429,6.7114,149.0,148.94,82.3001]
[1741172399323,0.28432314,148.99,148.94,82.3001]
[1741172400229,6.7114,149.0,148.94,89.014]
[1741172400441,6.741,149.01,148.95,18.9592494]
[1741172400740,0.03,149.01,148.96,18.9592494]
[1741172400938,6.741,149.01,148.95,227.66]
[1741172401121,6.741,149.01,148.95,82.3]
[1741172401437,18.933972,149.0,148.94,0.0001]
[1741172401651,0.28432314,149.0,148.94,0.0001]
[1741172402318,6.7118,148.99,148.94,0.0001]
[1741172403311,18.933972,148.98,148.94,0.0001]
[1741172404231,29.6944,148.99,148.94,0.0001]
[1741172404232,45.647572,148.95,148.94,0.0001]
[1741172406243,18.933972,148.94,148.91,0.033]
[1741172406428,18.933972,148.92,148.91,0.033]
[1741172407029,18.933972,148.92,148.9,0.033]
[1741172407225,0.28432314,148.9,148.88,0.033]
[1741172408324,7.00062314,148.89,148.88,0.033]
[1741172409420,6.7163,148.89,148.88,0.033]
[1741172409623,7.00062314,148.89,148.88,0.033]
[1741172410356,0.28432314,148.88,148.81,1.6227]
[1741172410554,0.28432314,148.88,148.79,220.733]
[1741172410743,0.28432314,148.85,148.79,0.033]
[1741172411238,0.14216157,148.88,148.8,18.9592494]
[1741172411428,0.28432314,148.88,148.81,18.9592494]
[1741172411817,0.28432314,148.88,148.8,220.7]
[1741172412020,6.7163,148.89,148.81,18.9592494]
[1741172412431,6.7163,148.89,148.82,6.7195]
[1741172413149,6.7163,148.89,148.81,25.6790494]
[1741172413444,6.7163,148.89,148.82,312.0]
[1741172414432,6.7163,148.89,148.82,318.7194]
[1741172414937,0.28432314,148.88,148.8,239.6592494]
[1741172415145,18.933972,148.88,148.8,82.3]
[1741172415340,0.28432314,148.88,148.8,82.3]
[1741172415520,1.7638718,148.87,148.8,82.3]
[1741172415928,0.28432314,148.87,148.81,18.64964886]
[1741172416439,6.7177,148.86,148.81,18.64964886]
[1741172416617,0.28432314,148.85,148.8,82.3]
[1741172417023,0.28432314,148.87,148.81,18.64964886]
[1741172418046,1.76372084,148.86,148.8,81.833]
[1741172418242,2.04799239,148.87,148.8,81.833]
[1741172418736,20.28432314,148.85,148.8,0.033]
[1741172418928,0.28432314,148.83,148.8,0.033]
[1741172420430,20.0,148.84,148.8,0.033]
[1741172420626,21.76387361,148.84,148.8,0.033]
[1741172420833,20.0,148.84,148.8,0.033]
[1741172421043,20.0,148.84,148.8,312.033]
[1741172421335,2.04823586,148.83,148.8,0.033]
[1741172424762,22.04823586,148.83,148.8,0.033]
[1741172429160,2.04823586,148.83,148.8,0.033]
[1741172429361,1.76410453,148.88,148.82,18.9592494]
[1741172429556,89.0379,148.89,148.81,18.64964886]
[1741172429742,0.28432314,148.87,148.81,37.60889826]
[1741172429942,1.76346957,148.88,148.81,37.60889826]
[1741172430275,0.28432314,148.87,148.81,37.60889826]
[1741172430576,1.7636224,148.86,148.8,0.033]
[1741172430754,0.28432314,148.85,148.8,0.033]
[1741172431060,0.28432314,148.83,148.8,0.033]
[1741172432065,1.76422972,148.85,148.8,0.033]
[1741172432262,0.28432314,148.84,148.8,0.033]
[1741172432645,0.28432314,148.82,148.8,0.033]
[1741172432867,2.04861844,148.82,148.8,0.033]
[1741172433544,0.28432314,148.8,148.7,100.7592494]
[1741172433748,0.28432314,148.78,148.7,81.8]
[1741172433964,1.76508031,148.77,148.7,81.8]
[1741172434180,20.0,148.75,148.7,81.8]
[1741172435469,0.14216157,148.76,148.71,18.64964886]
[1741172435766,0.28432314,148.76,148.71,18.64964886]
[1741172436346,1.76508031,148.77,148.71,37.60889826]
[1741172436567,0.28432314,148.8,148.73,37.64189826]
[1741172436772,84.66486575,148.81,148.73,18.68264886]
[1741172437269,0.28432314,148.8,148.73,18.68264886]
[1741172437498,83.6542826,148.81,148.75,37.60889826]
[1741172437680,83.6542826,148.81,148.76,18.9592494]
[1741172437856,21.76486575,148.81,148.74,100.44964886]
[1741172438057,21.76486575,148.81,148.75,18.9592494]
[1741172438274,0.28432314,148.8,148.75,18.9592494]
[1741172438480,1.76486575,148.81,148.75,18.9592494]
[1741172438782,1.7642545,148.83,148.75,18.9592494]
[1741172439280,0.28432314,148.8,148.73,0.033]
[1741172439487,0.28432314,148.77,148.73,0.033]
[1741172439785,21.76491692,148.78,148.73,0.033]
[1741172439985,20.0,148.78,148.73,0.033]
[1741172440162,2.04898517,148.79,148.74,18.64964886]
[1741172440360,1.7644914,148.8,148.74,18.64964886]
[1741172440565,0.28432314,148.82,148.74,18.64964886]
[1741172440770,0.28432314,148.8,148.74,18.64964886]
[1741172440973,0.28432314,148.8,148.73,0.033]
[1741172441380,0.28432314,148.78,148.73,0.033]
[1741172442265,0.28432314,148.76,148.73,0.033]
[1741172442580,1.76502099,148.75,148.73,0.033]
[1741172442968,20.28432314,148.74,148.73,0.033]
[1741172443367,44.44572742,148.74,148.67,1.6342734]
[1741172443565,44.44572742,148.74,148.65,0.033]
[1741172443566,0.28432314,148.72,148.65,0.033]
[1741172443863,0.28432314,148.66,148.65,0.033]
[1741172444083,22.05089897,148.66,148.65,0.033]
[1741172444582,0.28432314,148.61,148.58,0.033]
[1741172444779,0.28432314,148.59,148.58,0.033]
[1741172445370,2.05146534,148.59,148.58,0.033]
[1741172445571,46.7305142,148.59,148.54,0.4]
[1741172445965,28.08086534,148.59,148.54,0.4]
[1741172446866,2.05146534,148.59,148.54,0.4]
[1741172447588,0.28432314,148.56,148.54,0.4]
[1741172447788,2.05169899,148.56,148.54,0.4]
[1741172448286,83.18432314,148.55,148.54,0.4]
[1741172449282,0.28432314,148.55,148.54,0.4]
[1741172449482,0.14216157,148.5,148.43,1.12907438]
[1741172449787,2.05263831,148.5,148.43,31.68455489]
[1741172449966,0.14216157,148.54,148.48,18.64964886]
[1741172450163,1.76743778,148.55,148.49,18.64964886]
[1741172450394,21.76743778,148.55,148.48,18.64964886]
[1741172450569,1.76738409,148.57,148.48,49.20512937]
[1741172450889,21.76738409,148.57,148.48,269.40512937]
[1741172451092,6.1198,148.6,148.48,238.84964886]
[1741172451093,1.76734633,148.59,148.48,238.84964886]
[1741172451291,1.76734633,148.59,148.5,30.55548051]
[1741172451614,1.76734633,148.59,148.48,221.7045]
[1741172451615,0.28432314,148.56,148.48,221.7045]
[1741172451775,21.76728196,148.57,148.5,30.55548051]
[1741172452179,21.76728196,148.57,148.51,18.64964886]
[1741172452595,21.76728196,148.57,148.51,330.64964886]
[1741172453472,20.0,148.57,148.51,330.64964886]
[1741172453996,0.28432314,148.56,148.51,312.0]
[1741172454178,1.76724394,148.58,148.51,342.55548051]
[1741172454499,0.28432314,148.6,148.52,18.64964886]
[1741172454899,0.28432314,148.58,148.52,18.64964886]
[1741172455108,0.28432314,148.58,148.51,393.8]
[1741172455394,0.28432314,148.58,148.5,18.68264886]
[1741172455395,1.76732673,148.57,148.5,18.68264886]
[1741172456102,1.76732673,148.57,148.5,0.033]
[1741172456303,1.76732673,148.57,148.5,18.68264886]
[1741172456508,0.28432314,148.56,148.5,0.033]
[1741172457073,0.28432314,148.56,148.48,18.64964886]
[1741172457273,0.28432314,148.56,148.49,18.64964886]
[1741172458308,0.28432314,148.56,148.48,312.0]
[1741172458601,0.28432314,148.53,148.46,30.55548051]
[1741172458805,0.28432314,148.53,148.45,227.12]
[1741172458806,2.05198051,148.53,148.47,18.64964886]
[1741172459113,2.05198051,148.53,148.45,112.35548051]
[1741172459114,0.28432314,148.51,148.43,31.68455489]
[1741172459275,20.0,148.5,148.43,1.12907438]
[1741172459591,0.28432314,148.48,148.43,1.12907438]
[1741172460997,1.76836839,148.48,148.43,1.12907438]
[1741172461371,21.76836839,148.48,148.43,1.12907438]
[1741172461576,2.05268877,148.5,148.43,1.12907438]
[1741172461873,1.76836563,148.5,148.43,31.68455489]
[1741172462079,1.76797938,148.53,148.44,30.55548051]
[1741172462295,1.76797938,148.53,148.43,1.12907438]
[1741172462296,0.28432314,148.5,148.43,1.12907438]
[1741172462594,0.14216157,148.48,148.43,1.12907438]
[1741172462802,0.14216157,148.47,148.43,1.12907438]
[1741172463297,1.76853255,148.46,148.43,1.12907438]
[1741172463798,1.76855424,148.48,148.43,1.12907438]
[1741172465396,0.28432314,148.47,148.43,1.12907438]
[1741172465580,0.14216157,148.43,148.38,1.6342734]
[1741172465773,0.14216157,148.41,148.38,1.6342734]
[1741172465978,21.76884746,148.42,148.38,1.6342734]
[1741172466280,0.28432314,148.43,148.38,1.6342734]
[1741172466783,82.9,148.48,148.4,30.55548051]
[1741172467109,1.76830953,148.47,148.43,0.033]
[1741172467593,1.76838369,148.49,148.43,0.033]
[1741172468613,6.1895,148.5,148.48,30.55548051]
[1741172468614,0.03,148.5,148.48,30.55548051]
[1741172468797,0.03,148.5,148.49,30.55548051]
[1741172469409,0.03,148.5,148.48,30.55548051]
[1741172470896,0.03,148.5,148.49,30.55548051]
[1741172471699,0.03,148.5,148.49,269.40512937]
[1741172471897,0.03,148.59,148.5,18.64964886]
[1741172472099,0.03,148.59,148.54,30.55548051]
[1741172472294,0.03,148.59,148.53,30.55548051]
[1741172472494,1.79687974,148.59,148.54,30.55548051]
[1741172472798,0.03,148.59,148.55,30.55548051]
[1741172473307,1.79666825,148.59,148.47,81.8]
[1741172473614,0.28432314,148.58,148.47,112.35548051]
[1741172473822,0.28432314,148.56,148.49,30.55548051]
[1741172474125,0.28432314,148.56,148.47,250.75548051]
[1741172474425,0.14216157,148.58,148.47,250.75548051]
[1741172474626,0.28432314,148.56,148.49,30.55548051]
[1741172475224,0.28432314,148.54,148.45,1.5495]
[1741172475411,0.28432314,148.52,148.41,83.3925]
[1741172475590,20.28432314,148.5,148.41,113.94798051]
[1741172475790,0.28432314,148.48,148.41,83.3925]
[1741172476103,1.76846436,148.49,148.43,30.58848051]
[1741172476296,0.28432314,148.49,148.43,0.033]
[1741172476623,2.05266553,148.49,148.43,0.033]
[1741172476923,20.0,148.5,148.44,30.55548051]
[1741172477126,1.76829707,148.52,148.45,30.55548051]
[1741172477422,84.66775301,148.55,148.48,30.55548051]
[1741172477590,1.76775301,148.55,148.48,30.55548051]
[1741172477790,1.76747926,148.56,148.5,30.55548051]
[1741172477992,6.3313,148.58,148.52,30.55548051]
[1741172478211,89.0679,148.62,148.52,30.55548051]
[1741172478398,1.76699227,148.61,148.52,30.55548051]
[1741172478618,1.79690479,148.59,148.52,30.55548051]
[1741172478938,0.03,148.59,148.54,30.55548051]